[Event "Titled Tuesday Blitz August 08 Early 2023"]
[White "Atakhan, Abtin"]
[Black "Aronian, Levon"]
[WhiteFideId "22502203"]
[BlackFideId "13300474"]
[WhiteElo "2823"]
[BlackElo "3024"]
[Result "0-1"]
[Round "4"]
[TimeControl "180+1"]
[Date "2023.08.08"]
[WhiteClock "0:00:00"]
[BlackClock "0:00:20"]
[Board "9"]

1. Nf3 {[%clk 0:03:00]}  g6 {[%clk 0:02:58]} 2. g3 {[%clk 0:03:01]}  Bg7 {[%clk 0:02:58]} 3. d4 {[%clk 0:03:01]}  Nf6 {[%clk 0:02:55]} 4. Bg2 {[%clk 0:03:02]}  O-O {[%clk 0:02:55]} 5. O-O {[%clk 0:03:02]}  d6 {[%clk 0:02:56]} 6. c4 {[%clk 0:03:00]}  Nc6 {[%clk 0:02:55]} 7. Nc3 {[%clk 0:03:00]}  a6 {[%clk 0:02:54]} 8. d5 {[%clk 0:02:54]}  Na5 {[%clk 0:02:54]} 9. b3 {[%clk 0:02:34]}  b5 {[%clk 0:02:29]} 10. cxb5 {[%clk 0:02:34]}  axb5 {[%clk 0:02:29]} 11. Nd4 {[%clk 0:02:34]}  b4 {[%clk 0:01:58]} 12. Na4 {[%clk 0:02:33]}  Bd7 {[%clk 0:01:55]} 13. Rb1 {[%clk 0:02:34]}  Rb8 {[%clk 0:01:31]} 14. Bb2 {[%clk 0:02:22]}  e6 {[%clk 0:01:29]} 15. dxe6 {[%clk 0:02:18]}  fxe6 {[%clk 0:01:29]} 16. Ba1 {[%clk 0:02:07]}  c5 {[%clk 0:01:27]} 17. Nf3 {[%clk 0:01:58]}  Qe7 {[%clk 0:01:27]} 18. Nb2 {[%clk 0:01:40]}  Nd5 {[%clk 0:01:24]} 19. Nd3 {[%clk 0:01:34]}  Bb5 {[%clk 0:01:20]} 20. Bxg7 {[%clk 0:01:34]}  Kxg7 {[%clk 0:01:19]} 21. Qc2 {[%clk 0:01:31]}  Nc6 {[%clk 0:01:17]} 22. Ra1 {[%clk 0:01:17]}  Ra8 {[%clk 0:01:17]} 23. h4 {[%clk 0:01:16]}  h6 {[%clk 0:01:16]} 24. Nd2 {[%clk 0:01:05]}  Nd4 {[%clk 0:01:12]} 25. Qb2 {[%clk 0:01:06]}  Nc3 {[%clk 0:01:02]} 26. Bxa8 {[%clk 0:01:05]}  Rxa8 {[%clk 0:01:00]} 27. Rfe1 {[%clk 0:01:01]}  Qf6 {[%clk 0:00:56]} 28. Nc4 {[%clk 0:00:43]}  d5 {[%clk 0:00:44]} 29. Nce5 {[%clk 0:00:41]}  Ncxe2+ {[%clk 0:00:43]} 30. Rxe2 {[%clk 0:00:41]}  Bxd3 {[%clk 0:00:39]} 31. Re3 {[%clk 0:00:32]}  Be4 {[%clk 0:00:31]} 32. f4 {[%clk 0:00:24]}  g5 {[%clk 0:00:29]} 33. hxg5 {[%clk 0:00:14]}  hxg5 {[%clk 0:00:28]} 34. Qf2 {[%clk 0:00:09]}  Rh8 {[%clk 0:00:27]} 35. Rxe4 {[%clk 0:00:03]}  dxe4 {[%clk 0:00:27]} 36. Rc1 {[%clk 0:00:02]}  Qh6 {[%clk 0:00:22]} 37. Kf1 {[%clk 0:00:00]}  Qh1+ {[%clk 0:00:20]} 0-1


[Site "https://www.chess.com"]

[Event "Titled Tuesday Blitz August 08 Early 2023"]
[White "Matlakov, Maxim"]
[Black "Fantastic_Power"]
[WhiteFideId "4168003"]
[WhiteElo "2992"]
[BlackElo "2795"]
[Result "1/2-1/2"]
[Round "4"]
[TimeControl "180+1"]
[Date "2023.08.08"]
[WhiteClock "0:00:02"]
[BlackClock "0:00:03"]
[Board "14"]

1. e4 {[%clk 0:03:00]}  c5 {[%clk 0:02:58]} 2. Nf3 {[%clk 0:03:00]}  Nc6 {[%clk 0:02:58]} 3. Bb5 {[%clk 0:02:58]}  g6 {[%clk 0:02:57]} 4. O-O {[%clk 0:02:57]}  Bg7 {[%clk 0:02:57]} 5. d3 {[%clk 0:02:54]}  e5 {[%clk 0:02:50]} 6. Bg5 {[%clk 0:02:51]}  Nge7 {[%clk 0:02:28]} 7. Nc3 {[%clk 0:02:49]}  O-O {[%clk 0:02:25]} 8. Bc4 {[%clk 0:02:49]}  h6 {[%clk 0:02:08]} 9. Bxe7 {[%clk 0:02:47]}  Nxe7 {[%clk 0:02:02]} 10. a3 {[%clk 0:02:48]}  d6 {[%clk 0:01:59]} 11. b4 {[%clk 0:02:48]}  b6 {[%clk 0:01:59]} 12. Rb1 {[%clk 0:02:44]}  Kh7 {[%clk 0:01:58]} 13. Nd5 {[%clk 0:02:42]}  Be6 {[%clk 0:01:55]} 14. Ne3 {[%clk 0:02:37]}  Qd7 {[%clk 0:01:50]} 15. h3 {[%clk 0:02:36]}  f5 {[%clk 0:01:50]} 16. Bxe6 {[%clk 0:02:33]}  Qxe6 {[%clk 0:01:50]} 17. c4 {[%clk 0:02:33]}  g5 {[%clk 0:01:40]} 18. exf5 {[%clk 0:02:26]}  Nxf5 {[%clk 0:01:39]} 19. Nd2 {[%clk 0:02:24]}  Nxe3 {[%clk 0:01:18]} 20. fxe3 {[%clk 0:02:25]}  d5 {[%clk 0:01:18]} 21. bxc5 {[%clk 0:02:21]}  bxc5 {[%clk 0:01:10]} 22. cxd5 {[%clk 0:02:08]}  Qxd5 {[%clk 0:01:10]} 23. Qc2 {[%clk 0:02:08]}  Rxf1+ {[%clk 0:00:57]} 24. Rxf1 {[%clk 0:02:09]}  Rd8 {[%clk 0:00:57]} 25. Nf3 {[%clk 0:01:13]}  Qxd3 {[%clk 0:00:41]} 26. Qxc5 {[%clk 0:01:12]}  e4 {[%clk 0:00:25]} 27. Nh2 {[%clk 0:01:10]}  Qe2 {[%clk 0:00:18]} 28. Ng4 {[%clk 0:01:03]}  Rd1 {[%clk 0:00:12]} 29. Qf5+ {[%clk 0:01:01]}  Kh8 {[%clk 0:00:11]} 30. a4 {[%clk 0:00:21]}  h5 {[%clk 0:00:06]} 31. Qc8+ {[%clk 0:00:20]}  Kh7 {[%clk 0:00:06]} 32. Qf5+ {[%clk 0:00:20]}  Kh8 {[%clk 0:00:06]} 33. Qc8+ {[%clk 0:00:11]}  Kh7 {[%clk 0:00:06]} 34. Nf6+ {[%clk 0:00:06]}  Bxf6 {[%clk 0:00:06]} 35. Qf5+ {[%clk 0:00:06]}  Kg8 {[%clk 0:00:04]} 36. Qe6+ {[%clk 0:00:06]}  Kh7 {[%clk 0:00:04]} 37. Qf5+ {[%clk 0:00:06]}  Kg8 {[%clk 0:00:04]} 38. Qg6+ {[%clk 0:00:03]}  Bg7 {[%clk 0:00:02]} 39. Qe8+ {[%clk 0:00:04]}  Kh7 {[%clk 0:00:03]} 40. Qxe4+ {[%clk 0:00:04]}  Kg8 {[%clk 0:00:02]} 41. Qe8+ {[%clk 0:00:04]}  Kh7 {[%clk 0:00:02]} 42. Qe4+ {[%clk 0:00:04]}  Kg8 {[%clk 0:00:02]} 43. Qe6+ {[%clk 0:00:03]}  Kh7 {[%clk 0:00:03]} 44. Qe4+ {[%clk 0:00:02]} 1/2-1/2


[Site "https://www.chess.com"]

[Event "Titled Tuesday Blitz August 08 Early 2023"]
[White "Cherniaiev, Tykhon"]
[Black "Van Foreest, Jorden"]
[WhiteFideId "14182360"]
[BlackFideId "1039784"]
[WhiteElo "2779"]
[BlackElo "2989"]
[Result "1/2-1/2"]
[Round "4"]
[TimeControl "180+1"]
[Date "2023.08.08"]
[WhiteClock "0:00:05"]
[BlackClock "0:00:11"]
[Board "15"]

1. Nf3 {[%clk 0:03:00]}  Nc6 {[%clk 0:02:57]} 2. d4 {[%clk 0:02:55]}  d6 {[%clk 0:02:57]} 3. e4 {[%clk 0:02:53]}  Nf6 {[%clk 0:02:56]} 4. Bd3 {[%clk 0:02:51]}  Bg4 {[%clk 0:02:55]} 5. c3 {[%clk 0:02:51]}  e5 {[%clk 0:02:54]} 6. Be3 {[%clk 0:02:46]}  d5 {[%clk 0:02:51]} 7. Nbd2 {[%clk 0:02:39]}  exd4 {[%clk 0:02:50]} 8. cxd4 {[%clk 0:02:39]}  dxe4 {[%clk 0:02:49]} 9. Nxe4 {[%clk 0:02:40]}  Bb4+ {[%clk 0:02:47]} 10. Nc3 {[%clk 0:02:38]}  Nd5 {[%clk 0:02:43]} 11. O-O {[%clk 0:02:06]}  O-O {[%clk 0:02:35]} 12. Nxd5 {[%clk 0:02:03]}  Qxd5 {[%clk 0:02:34]} 13. h3 {[%clk 0:02:04]}  Bxf3 {[%clk 0:02:30]} 14. Qxf3 {[%clk 0:02:05]}  Qxf3 {[%clk 0:02:29]} 15. gxf3 {[%clk 0:02:06]}  Rad8 {[%clk 0:02:29]} 16. Rad1 {[%clk 0:02:02]}  Ne7 {[%clk 0:02:24]} 17. a3 {[%clk 0:01:57]}  Bd6 {[%clk 0:02:23]} 18. Kg2 {[%clk 0:01:34]}  Nd5 {[%clk 0:02:22]} 19. Be4 {[%clk 0:01:34]}  c6 {[%clk 0:02:18]} 20. Bxd5 {[%clk 0:01:29]}  cxd5 {[%clk 0:02:19]} 21. Rc1 {[%clk 0:01:29]}  f6 {[%clk 0:02:13]} 22. Rfe1 {[%clk 0:01:28]}  Kf7 {[%clk 0:02:12]} 23. Bd2 {[%clk 0:01:25]}  Rc8 {[%clk 0:02:10]} 24. Rxc8 {[%clk 0:01:10]}  Rxc8 {[%clk 0:02:11]} 25. Rc1 {[%clk 0:01:11]}  Re8 {[%clk 0:02:11]} 26. Re1 {[%clk 0:01:10]}  Rxe1 {[%clk 0:02:10]} 27. Bxe1 {[%clk 0:01:11]}  Bf4 {[%clk 0:02:11]} 28. Bc3 {[%clk 0:01:03]}  Ke6 {[%clk 0:02:10]} 29. a4 {[%clk 0:01:00]}  Kf5 {[%clk 0:02:05]} 30. b3 {[%clk 0:01:00]}  h5 {[%clk 0:02:03]} 31. Kf1 {[%clk 0:00:57]}  Bc1 {[%clk 0:02:01]} 32. Kg2 {[%clk 0:00:57]}  Kf4 {[%clk 0:01:51]} 33. Bb4 {[%clk 0:00:51]}  Bb2 {[%clk 0:01:51]} 34. Bd2+ {[%clk 0:00:47]}  Kf5 {[%clk 0:01:51]} 35. Be3 {[%clk 0:00:47]}  Ba3 {[%clk 0:01:41]} 36. Bd2 {[%clk 0:00:47]}  Bd6 {[%clk 0:01:40]} 37. Bc3 {[%clk 0:00:47]}  Bc7 {[%clk 0:01:39]} 38. Bd2 {[%clk 0:00:45]}  Bb6 {[%clk 0:01:38]} 39. Bc3 {[%clk 0:00:45]}  g5 {[%clk 0:01:34]} 40. Kf1 {[%clk 0:00:43]}  a6 {[%clk 0:01:17]} 41. Kg2 {[%clk 0:00:43]}  Ba7 {[%clk 0:01:16]} 42. Bb2 {[%clk 0:00:43]}  b5 {[%clk 0:01:16]} 43. axb5 {[%clk 0:00:43]}  axb5 {[%clk 0:01:16]} 44. Bc3 {[%clk 0:00:43]}  Bb6 {[%clk 0:01:16]} 45. Kf1 {[%clk 0:00:41]}  Bc7 {[%clk 0:01:16]} 46. Kg2 {[%clk 0:00:41]}  Bf4 {[%clk 0:01:15]} 47. Kf1 {[%clk 0:00:22]}  Bc1 {[%clk 0:01:15]} 48. Ke2 {[%clk 0:00:22]}  Kf4 {[%clk 0:01:06]} 49. Bb4 {[%clk 0:00:19]}  Bb2 {[%clk 0:01:05]} 50. Bd6+ {[%clk 0:00:19]}  Kf5 {[%clk 0:01:05]} 51. Kd3 {[%clk 0:00:16]}  Ke6 {[%clk 0:01:04]} 52. Bb4 {[%clk 0:00:16]}  Bc1 {[%clk 0:01:02]} 53. Ke2 {[%clk 0:00:16]}  Bf4 {[%clk 0:00:58]} 54. Bc3 {[%clk 0:00:15]}  Kf5 {[%clk 0:00:56]} 55. Bb4 {[%clk 0:00:15]}  Bc7 {[%clk 0:00:56]} 56. Bc5 {[%clk 0:00:12]}  Ba5 {[%clk 0:00:56]} 57. Bd6 {[%clk 0:00:11]}  Bc3 {[%clk 0:00:54]} 58. Bc5 {[%clk 0:00:11]}  Kg6 {[%clk 0:00:54]} 59. Kd3 {[%clk 0:00:10]}  Bb2 {[%clk 0:00:54]} 60. Kc2 {[%clk 0:00:10]}  Ba1 {[%clk 0:00:53]} 61. Kd3 {[%clk 0:00:10]}  f5 {[%clk 0:00:53]} 62. Bb6 {[%clk 0:00:08]}  g4 {[%clk 0:00:52]} 63. hxg4 {[%clk 0:00:08]}  fxg4 {[%clk 0:00:52]} 64. fxg4 {[%clk 0:00:09]}  hxg4 {[%clk 0:00:42]} 65. Bc7 {[%clk 0:00:10]}  Kg7 {[%clk 0:00:39]} 66. Bg3 {[%clk 0:00:10]}  Kg6 {[%clk 0:00:39]} 67. Bc7 {[%clk 0:00:10]}  Kf5 {[%clk 0:00:39]} 68. Bg3 {[%clk 0:00:10]}  Bb2 {[%clk 0:00:38]} 69. Bh2 {[%clk 0:00:05]}  Bc1 {[%clk 0:00:37]} 70. Bg3 {[%clk 0:00:05]}  Bf4 {[%clk 0:00:37]} 71. Bh4 {[%clk 0:00:05]}  Bd6 {[%clk 0:00:37]} 72. Bg3 {[%clk 0:00:05]}  Bf4 {[%clk 0:00:32]} 73. Bh4 {[%clk 0:00:05]}  Kg6 {[%clk 0:00:27]} 74. Bg3 {[%clk 0:00:06]}  Kg5 {[%clk 0:00:27]} 75. Ke2 {[%clk 0:00:04]}  Bc1 {[%clk 0:00:22]} 76. Kd3 {[%clk 0:00:05]}  Kf5 {[%clk 0:00:22]} 77. Bh2 {[%clk 0:00:03]}  Bf4 {[%clk 0:00:20]} 78. Bg3 {[%clk 0:00:04]}  b4 {[%clk 0:00:18]} 79. Bh4 {[%clk 0:00:03]}  Bd6 {[%clk 0:00:16]} 80. Bg3 {[%clk 0:00:03]}  Be7 {[%clk 0:00:16]} 81. Bh2 {[%clk 0:00:03]}  Bh4 {[%clk 0:00:14]} 82. Bg3 {[%clk 0:00:04]}  Be7 {[%clk 0:00:14]} 83. Bh2 {[%clk 0:00:04]}  Bf8 {[%clk 0:00:14]} 84. Bg3 {[%clk 0:00:05]}  Be7 {[%clk 0:00:11]} 1/2-1/2


[Site "https://www.chess.com"]

[Event "Titled Tuesday Blitz August 08 Early 2023"]
[White "Jaracz, Pawel"]
[Black "Shimanov, Aleksandr"]
[WhiteFideId "1102222"]
[BlackFideId "4198603"]
[WhiteElo "2735"]
[BlackElo "2939"]
[Result "1-0"]
[Round "4"]
[TimeControl "180+1"]
[Date "2023.08.08"]
[WhiteClock "0:00:49"]
[BlackClock "0:00:08"]
[Board "16"]

1. b4 {[%clk 0:02:59]}  e5 {[%clk 0:02:55]} 2. Bb2 {[%clk 0:02:59]}  Bxb4 {[%clk 0:02:54]} 3. Bxe5 {[%clk 0:02:59]}  Nf6 {[%clk 0:02:55]} 4. e3 {[%clk 0:02:59]}  O-O {[%clk 0:02:54]} 5. Nf3 {[%clk 0:02:55]}  d5 {[%clk 0:02:52]} 6. Be2 {[%clk 0:02:53]}  c5 {[%clk 0:02:52]} 7. c3 {[%clk 0:02:52]}  Ba5 {[%clk 0:02:51]} 8. O-O {[%clk 0:02:51]}  Nc6 {[%clk 0:02:51]} 9. Bxf6 {[%clk 0:02:51]}  Qxf6 {[%clk 0:02:51]} 10. d4 {[%clk 0:02:52]}  Be6 {[%clk 0:02:45]} 11. Qb3 {[%clk 0:02:49]}  b6 {[%clk 0:02:38]} 12. Nbd2 {[%clk 0:02:47]}  Rfd8 {[%clk 0:02:31]} 13. Rac1 {[%clk 0:02:40]}  Rac8 {[%clk 0:02:30]} 14. Qa4 {[%clk 0:02:34]}  h5 {[%clk 0:02:23]} 15. Bb5 {[%clk 0:02:20]}  Bd7 {[%clk 0:02:20]} 16. dxc5 {[%clk 0:02:16]}  Bxc3 {[%clk 0:02:13]} 17. Nb3 {[%clk 0:02:13]}  bxc5 {[%clk 0:01:19]} 18. Nxc5 {[%clk 0:02:11]}  Be8 {[%clk 0:01:20]} 19. Rfd1 {[%clk 0:01:26]}  g5 {[%clk 0:00:44]} 20. h3 {[%clk 0:01:22]}  Ne7 {[%clk 0:00:35]} 21. Bxe8 {[%clk 0:01:18]}  Rxe8 {[%clk 0:00:36]} 22. e4 {[%clk 0:00:53]}  g4 {[%clk 0:00:31]} 23. hxg4 {[%clk 0:00:53]}  hxg4 {[%clk 0:00:32]} 24. e5 {[%clk 0:00:53]}  Bxe5 {[%clk 0:00:33]} 25. Qxg4+ {[%clk 0:00:52]}  Ng6 {[%clk 0:00:31]} 26. Nd7 {[%clk 0:00:50]}  Qg7 {[%clk 0:00:28]} 27. Rxc8 {[%clk 0:00:48]}  Rxc8 {[%clk 0:00:08]} 28. Ndxe5 {[%clk 0:00:49]} 1-0


[Site "https://www.chess.com"]

[Event "Titled Tuesday Blitz August 08 Early 2023"]
[White "Rendle, Thomas E"]
[Black "Alekseev, Evgeny"]
[WhiteFideId "408760"]
[BlackFideId "4138147"]
[WhiteElo "2715"]
[BlackElo "2934"]
[Result "0-1"]
[Round "4"]
[TimeControl "180+1"]
[Date "2023.08.08"]
[WhiteClock "0:00:10"]
[BlackClock "0:00:18"]
[Board "17"]

1. d4 {[%clk 0:03:00]}  Nf6 {[%clk 0:02:42]} 2. c4 {[%clk 0:03:01]}  e6 {[%clk 0:02:42]} 3. g3 {[%clk 0:03:01]}  c5 {[%clk 0:02:42]} 4. d5 {[%clk 0:03:01]}  exd5 {[%clk 0:02:42]} 5. cxd5 {[%clk 0:03:02]}  d6 {[%clk 0:02:43]} 6. Nc3 {[%clk 0:03:02]}  g6 {[%clk 0:02:43]} 7. Bg2 {[%clk 0:03:03]}  Bg7 {[%clk 0:02:44]} 8. Nf3 {[%clk 0:03:03]}  O-O {[%clk 0:02:44]} 9. O-O {[%clk 0:03:04]}  Nbd7 {[%clk 0:02:44]} 10. Bf4 {[%clk 0:03:02]}  Qe7 {[%clk 0:02:42]} 11. h3 {[%clk 0:02:43]}  Nh5 {[%clk 0:02:42]} 12. Bg5 {[%clk 0:02:42]}  f6 {[%clk 0:02:42]} 13. Bd2 {[%clk 0:02:39]}  f5 {[%clk 0:02:42]} 14. Ng5 {[%clk 0:02:28]}  f4 {[%clk 0:02:42]} 15. gxf4 {[%clk 0:02:19]}  Nxf4 {[%clk 0:02:38]} 16. Bxf4 {[%clk 0:02:19]}  Rxf4 {[%clk 0:02:37]} 17. Ne6 {[%clk 0:02:19]}  Rh4 {[%clk 0:02:36]} 18. e3 {[%clk 0:02:05]}  Nf6 {[%clk 0:01:47]} 19. Qf3 {[%clk 0:01:49]}  Rb8 {[%clk 0:01:42]} 20. Qg3 {[%clk 0:01:43]}  Nh5 {[%clk 0:01:39]} 21. Qh2 {[%clk 0:01:35]}  Be5 {[%clk 0:01:27]} 22. f4 {[%clk 0:01:34]}  Bxc3 {[%clk 0:01:25]} 23. bxc3 {[%clk 0:01:35]}  Bxe6 {[%clk 0:01:17]} 24. dxe6 {[%clk 0:01:36]}  Qxe6 {[%clk 0:01:17]} 25. Rfe1 {[%clk 0:01:31]}  b6 {[%clk 0:01:11]} 26. Rad1 {[%clk 0:01:31]}  Kg7 {[%clk 0:01:11]} 27. f5 {[%clk 0:01:30]}  Qxf5 {[%clk 0:01:04]} 28. Qxd6 {[%clk 0:01:30]}  Re8 {[%clk 0:00:58]} 29. Qd7+ {[%clk 0:01:29]}  Qxd7 {[%clk 0:00:55]} 30. Rxd7+ {[%clk 0:01:30]}  Kh6 {[%clk 0:00:55]} 31. Rxa7 {[%clk 0:01:30]}  Rc4 {[%clk 0:00:54]} 32. Ra3 {[%clk 0:01:23]}  Nf4 {[%clk 0:00:36]} 33. Rb3 {[%clk 0:01:22]}  Nxg2 {[%clk 0:00:33]} 34. Kxg2 {[%clk 0:01:21]}  Re6 {[%clk 0:00:34]} 35. Kf3 {[%clk 0:01:19]}  Rh4 {[%clk 0:00:32]} 36. Kg3 {[%clk 0:01:18]}  Ra4 {[%clk 0:00:32]} 37. Re2 {[%clk 0:01:18]}  Kh5 {[%clk 0:00:30]} 38. Kf3 {[%clk 0:01:11]}  Kh4 {[%clk 0:00:26]} 39. Reb2 {[%clk 0:01:10]}  Ra6 {[%clk 0:00:24]} 40. Rb1 {[%clk 0:00:47]}  g5 {[%clk 0:00:24]} 41. e4 {[%clk 0:00:41]}  h5 {[%clk 0:00:24]} 42. e5 {[%clk 0:00:37]}  Rxe5 {[%clk 0:00:23]} 43. Rxb6 {[%clk 0:00:35]}  Rxa2 {[%clk 0:00:22]} 44. c4 {[%clk 0:00:18]}  Ra3+ {[%clk 0:00:21]} 45. Kf2 {[%clk 0:00:15]}  Rxh3 {[%clk 0:00:20]} 46. Rd6 {[%clk 0:00:13]}  g4 {[%clk 0:00:19]} 47. Rd5 {[%clk 0:00:13]}  Rxd5 {[%clk 0:00:18]} 48. cxd5 {[%clk 0:00:10]}  Rd3 {[%clk 0:00:18]} 0-1


[Site "https://www.chess.com"]

[Event "Titled Tuesday Blitz August 08 Early 2023"]
[White "Bernadskiy, Vitaliy"]
[Black "LangesNasenhaar"]
[WhiteFideId "14100371"]
[WhiteElo "2876"]
[BlackElo "2558"]
[Result "1-0"]
[Round "4"]
[TimeControl "180+1"]
[Date "2023.08.08"]
[WhiteClock "0:00:29"]
[BlackClock "0:00:00"]
[Board "23"]

1. d4 {[%clk 0:03:00]}  g6 {[%clk 0:02:59]} 2. e4 {[%clk 0:02:59]}  Bg7 {[%clk 0:02:59]} 3. c3 {[%clk 0:02:59]}  c6 {[%clk 0:03:00]} 4. Nf3 {[%clk 0:02:49]}  d5 {[%clk 0:03:00]} 5. e5 {[%clk 0:02:50]}  Bg4 {[%clk 0:03:00]} 6. Nbd2 {[%clk 0:02:49]}  c5 {[%clk 0:03:00]} 7. h3 {[%clk 0:02:49]}  Bxf3 {[%clk 0:02:59]} 8. Nxf3 {[%clk 0:02:49]}  Nc6 {[%clk 0:02:58]} 9. Bb5 {[%clk 0:02:48]}  cxd4 {[%clk 0:02:54]} 10. Bxc6+ {[%clk 0:02:39]}  bxc6 {[%clk 0:02:53]} 11. cxd4 {[%clk 0:02:40]}  e6 {[%clk 0:02:45]} 12. O-O {[%clk 0:02:37]}  Ne7 {[%clk 0:02:43]} 13. b3 {[%clk 0:02:16]}  Qa5 {[%clk 0:02:28]} 14. Bd2 {[%clk 0:02:12]}  Qb6 {[%clk 0:02:22]} 15. Rc1 {[%clk 0:02:05]}  O-O {[%clk 0:02:18]} 16. Bg5 {[%clk 0:02:05]}  Rfe8 {[%clk 0:02:09]} 17. Qd2 {[%clk 0:02:01]}  Rac8 {[%clk 0:02:03]} 18. Rc5 {[%clk 0:01:54]}  Nf5 {[%clk 0:01:18]} 19. g4 {[%clk 0:01:49]}  Ne7 {[%clk 0:01:16]} 20. Rfc1 {[%clk 0:01:47]}  Rc7 {[%clk 0:01:13]} 21. Bf6 {[%clk 0:01:42]}  Bf8 {[%clk 0:01:08]} 22. Qf4 {[%clk 0:01:40]}  Nc8 {[%clk 0:01:02]} 23. h4 {[%clk 0:01:40]}  Qa6 {[%clk 0:00:49]} 24. Qd2 {[%clk 0:01:37]}  Qb7 {[%clk 0:00:24]} 25. Kg2 {[%clk 0:01:33]}  Nb6 {[%clk 0:00:25]} 26. h5 {[%clk 0:01:06]}  Nd7 {[%clk 0:00:25]} 27. b4 {[%clk 0:01:06]}  Nxc5 {[%clk 0:00:21]} 28. dxc5 {[%clk 0:00:53]}  Rb8 {[%clk 0:00:21]} 29. a3 {[%clk 0:00:51]}  a5 {[%clk 0:00:21]} 30. Ng5 {[%clk 0:00:46]}  axb4 {[%clk 0:00:12]} 31. Nxh7 {[%clk 0:00:36]}  Kxh7 {[%clk 0:00:07]} 32. Rh1 {[%clk 0:00:36]}  g5 {[%clk 0:00:01]} 33. Qd3+ {[%clk 0:00:30]}  Kg8 {[%clk 0:00:00]} 34. h6 {[%clk 0:00:29]} 1-0


[Site "https://www.chess.com"]

[Event "Titled Tuesday Blitz August 08 Early 2023"]
[White "Sjugirov, Sanan"]
[Black "Aradhya, Garg"]
[WhiteFideId "4189302"]
[BlackFideId "25006746"]
[WhiteElo "2922"]
[BlackElo "2765"]
[Result "1-0"]
[Round "4"]
[TimeControl "180+1"]
[Date "2023.08.08"]
[WhiteClock "0:00:11"]
[BlackClock "0:00:06"]
[Board "26"]

1. e4 {[%clk 0:03:00]}  e5 {[%clk 0:02:59]} 2. Nf3 {[%clk 0:03:01]}  Nc6 {[%clk 0:03:00]} 3. Bb5 {[%clk 0:03:01]}  a6 {[%clk 0:03:00]} 4. Ba4 {[%clk 0:03:02]}  Nge7 {[%clk 0:03:01]} 5. O-O {[%clk 0:02:59]}  Ng6 {[%clk 0:03:01]} 6. Bb3 {[%clk 0:02:45]}  Be7 {[%clk 0:03:00]} 7. d4 {[%clk 0:02:44]}  d6 {[%clk 0:02:59]} 8. h3 {[%clk 0:02:36]}  O-O {[%clk 0:02:40]} 9. c3 {[%clk 0:02:35]}  Bf6 {[%clk 0:02:40]} 10. Re1 {[%clk 0:02:34]}  Re8 {[%clk 0:02:40]} 11. Na3 {[%clk 0:02:25]}  h6 {[%clk 0:02:39]} 12. Bc2 {[%clk 0:02:08]}  b5 {[%clk 0:02:34]} 13. d5 {[%clk 0:01:56]}  Nb8 {[%clk 0:02:22]} 14. Bd3 {[%clk 0:01:47]}  c6 {[%clk 0:02:21]} 15. c4 {[%clk 0:01:45]}  Nf4 {[%clk 0:02:11]} 16. Bf1 {[%clk 0:01:41]}  b4 {[%clk 0:02:06]} 17. Nc2 {[%clk 0:01:40]}  a5 {[%clk 0:02:06]} 18. a3 {[%clk 0:01:30]}  b3 {[%clk 0:01:58]} 19. Ne3 {[%clk 0:01:31]}  a4 {[%clk 0:01:58]} 20. Ng4 {[%clk 0:01:29]}  Bd7 {[%clk 0:00:54]} 21. g3 {[%clk 0:01:14]}  Ng6 {[%clk 0:00:52]} 22. Be3 {[%clk 0:01:10]}  Na6 {[%clk 0:00:50]} 23. Rc1 {[%clk 0:00:56]}  Rc8 {[%clk 0:00:49]} 24. Qd2 {[%clk 0:00:28]}  Nc5 {[%clk 0:00:48]} 25. Bxc5 {[%clk 0:00:24]}  dxc5 {[%clk 0:00:49]} 26. Ne3 {[%clk 0:00:21]}  Qb6 {[%clk 0:00:39]} 27. Red1 {[%clk 0:00:21]}  Qb7 {[%clk 0:00:36]} 28. Qa5 {[%clk 0:00:19]}  Bd8 {[%clk 0:00:32]} 29. Qc3 {[%clk 0:00:12]}  Qa7 {[%clk 0:00:22]} 30. h4 {[%clk 0:00:12]}  Ba5 {[%clk 0:00:19]} 31. Qd3 {[%clk 0:00:12]}  Nf8 {[%clk 0:00:18]} 32. Kh2 {[%clk 0:00:11]}  Qa6 {[%clk 0:00:14]} 33. Bh3 {[%clk 0:00:10]}  Bxh3 {[%clk 0:00:13]} 34. Kxh3 {[%clk 0:00:11]}  Nd7 {[%clk 0:00:10]} 35. Kg2 {[%clk 0:00:10]}  Nf6 {[%clk 0:00:10]} 36. Nh2 {[%clk 0:00:05]}  cxd5 {[%clk 0:00:10]} 37. cxd5 {[%clk 0:00:04]}  Qxd3 {[%clk 0:00:10]} 38. Rxd3 {[%clk 0:00:05]}  Nxe4 {[%clk 0:00:10]} 39. Rc4 {[%clk 0:00:06]}  Nd6 {[%clk 0:00:09]} 40. Rxa4 {[%clk 0:00:06]}  c4 {[%clk 0:00:10]} 41. Rd1 {[%clk 0:00:06]}  Bb6 {[%clk 0:00:10]} 42. Nhf1 {[%clk 0:00:06]}  Bd4 {[%clk 0:00:09]} 43. Rd2 {[%clk 0:00:04]}  c3 {[%clk 0:00:05]} 44. bxc3 {[%clk 0:00:04]}  Bxc3 {[%clk 0:00:05]} 45. Rd1 {[%clk 0:00:04]}  b2 {[%clk 0:00:06]} 46. Rb1 {[%clk 0:00:04]}  Bd4 {[%clk 0:00:06]} 47. Rb4 {[%clk 0:00:03]}  Rc1 {[%clk 0:00:06]} 48. R1xb2 {[%clk 0:00:03]}  Bxb2 {[%clk 0:00:07]} 49. Rxb2 {[%clk 0:00:04]}  Rc3 {[%clk 0:00:07]} 50. Rb6 {[%clk 0:00:04]}  Nc4 {[%clk 0:00:07]} 51. Nxc4 {[%clk 0:00:04]}  Rxc4 {[%clk 0:00:08]} 52. Ne3 {[%clk 0:00:04]}  Rd4 {[%clk 0:00:08]} 53. Ra6 {[%clk 0:00:04]}  Rd8 {[%clk 0:00:08]} 54. a4 {[%clk 0:00:04]}  f6 {[%clk 0:00:08]} 55. a5 {[%clk 0:00:04]}  Kh7 {[%clk 0:00:07]} 56. Ra7 {[%clk 0:00:04]}  R8xd5 {[%clk 0:00:07]} 57. Nxd5 {[%clk 0:00:03]}  Rxd5 {[%clk 0:00:07]} 58. h5 {[%clk 0:00:04]}  e4 {[%clk 0:00:07]} 59. g4 {[%clk 0:00:04]}  Rg5 {[%clk 0:00:07]} 60. Kh3 {[%clk 0:00:04]}  f5 {[%clk 0:00:08]} 61. a6 {[%clk 0:00:02]}  Rxg4 {[%clk 0:00:04]} 62. Rf7 {[%clk 0:00:02]}  Rf4 {[%clk 0:00:04]} 63. a7 {[%clk 0:00:02]}  Rf3+ {[%clk 0:00:05]} 64. Kg2 {[%clk 0:00:02]}  Ra3 {[%clk 0:00:05]} 65. Kf1 {[%clk 0:00:02]}  f4 {[%clk 0:00:05]} 66. Kg2 {[%clk 0:00:02]}  e3 {[%clk 0:00:05]} 67. fxe3 {[%clk 0:00:02]}  fxe3 {[%clk 0:00:06]} 68. Kf3 {[%clk 0:00:02]}  Kg8 {[%clk 0:00:06]} 69. Rd7 {[%clk 0:00:03]}  Kh7 {[%clk 0:00:07]} 70. Ke2 {[%clk 0:00:03]}  Ra4 {[%clk 0:00:07]} 71. Re7 {[%clk 0:00:03]}  Ra5 {[%clk 0:00:07]} 72. Kxe3 {[%clk 0:00:03]}  Ra3+ {[%clk 0:00:07]} 73. Kd4 {[%clk 0:00:04]}  Ra4+ {[%clk 0:00:07]} 74. Kc5 {[%clk 0:00:04]}  Ra1 {[%clk 0:00:08]} 75. Kb6 {[%clk 0:00:05]}  Rb1+ {[%clk 0:00:08]} 76. Kc7 {[%clk 0:00:05]}  Ra1 {[%clk 0:00:08]} 77. Kb8 {[%clk 0:00:06]}  Rb1+ {[%clk 0:00:02]} 78. Rb7 {[%clk 0:00:05]}  Rf1 {[%clk 0:00:03]} 79. a8=Q {[%clk 0:00:05]}  Rf8+ {[%clk 0:00:03]} 80. Ka7 {[%clk 0:00:06]}  Rxa8+ {[%clk 0:00:04]} 81. Kxa8 {[%clk 0:00:07]}  Kg8 {[%clk 0:00:04]} 82. Ka7 {[%clk 0:00:07]}  Kf8 {[%clk 0:00:05]} 83. Kb6 {[%clk 0:00:08]}  Kg8 {[%clk 0:00:05]} 84. Kc5 {[%clk 0:00:08]}  Kf8 {[%clk 0:00:05]} 85. Kd5 {[%clk 0:00:09]}  Kg8 {[%clk 0:00:05]} 86. Ke6 {[%clk 0:00:09]}  Kh8 {[%clk 0:00:06]} 87. Kf5 {[%clk 0:00:09]}  Kh7 {[%clk 0:00:06]} 88. Rc7 {[%clk 0:00:10]}  Kg8 {[%clk 0:00:06]} 89. Kg6 {[%clk 0:00:11]}  Kh8 {[%clk 0:00:06]} 90. Rc8# {[%clk 0:00:11]} 1-0


[Site "https://www.chess.com"]